fUST/lending_fUST_20241007
["ID","MTS","AMOUNT","RATE_DAILY","PERIOD"]
[339977108,1728245513384,-500.0,0.0001863,2]
[339977109,1728245513395,-1687.43,0.0001863,2]
[339977110,1728245513406,-451.69854999,0.0001863,2]
[339977111,1728245513418,-559.4,0.0001863,2]
[339977112,1728245513430,-620.94,0.0001863,2]
[339977113,1728245513440,-570.64,0.0001863,2]
[339977114,1728245513451,-590.68,0.0001863,2]
[339977115,1728245513461,-525.69,0.0001863,2]
[339977116,1728245513472,-731.95,0.0001863,2]
[339977117,1728245513482,-749.78,0.0001863,2]
[339977118,1728245513493,-500.0,0.0001863,2]
[339977119,1728245513503,-500.0,0.0001863,2]
[339977120,1728245513514,-500.0,0.0001863,2]
[339977121,1728245513526,-500.0,0.0001863,2]
[339977122,1728245513539,-500.0,0.0001863,2]
[339977123,1728245513550,-700.34,0.0001863,2]
[339977124,1728245513561,-850.21,0.0001863,2]
[339977125,1728245513572,-793.43,0.0001863,2]
[339977126,1728245513583,-681.81,0.0001863,2]
[339977127,1728245513595,-500.0,0.0001863,2]
[339977128,1728245513605,-905.5,0.0001863,2]
[339977129,1728245513618,-618.07,0.0001863,2]
[339977130,1728245513628,-500.0,0.0001863,2]
[339977131,1728245513640,-1004.36,0.0001863,2]
[339977132,1728245513651,-769.79,0.0001863,2]
[339977133,1728245513664,-556.25,0.0001863,2]
[339977134,1728245513674,-704.99,0.0001863,2]
[339977135,1728245513684,-511.68,0.0001863,2]
[339977136,1728245513697,-151.0,0.0001863,2]
[339977137,1728245513709,-500.0,0.0001863,2]
[339977138,1728245513720,-500.0,0.0001863,2]
[339977139,1728245513732,-500.0,0.0001863,2]
[339977140,1728245513746,-716.88,0.0001863,2]
[339977141,1728245513757,-1213.0,0.0001863,2]
[339977142,1728245513769,-502.96,0.0001863,2]
[339977143,1728245513780,-435.05787252,0.0001863,2]
[339977144,1728245513790,-640.83,0.0001863,2]
[339977145,1728245513801,-799.58,0.0001863,2]
[339977146,1728245513813,-500.0,0.0001863,2]
[339977147,1728245513825,-2198.44,0.0001863,2]
[339977148,1728245513836,-500.0,0.0001863,2]
[339977149,1728245513847,-23220.06,0.0001863,2]
[339977150,1728245513859,-513.24,0.0001863,2]
[339977151,1728245513871,-1825.72,0.0001863,2]
[339977152,1728245513882,-500.0,0.0001863,2]
[339977153,1728245513893,-689.01,0.0001863,2]
[339977154,1728245513905,-3809.25,0.0001863,2]
[339977155,1728245513916,-701.74,0.0001863,2]
[339977156,1728245513928,-1068.37,0.0001863,2]
[339977157,1728245513939,-500.0,0.0001863,2]
[339977158,1728245513951,-500.0,0.0001863,2]
[339977159,1728245513963,-1687.94,0.0001863,2]
[339977160,1728245513974,-1019.82,0.0001863,2]
[339977161,1728245513986,-500.0,0.0001863,2]
[339977162,1728245513998,-604.14402089,0.0001863,2]
[339977163,1728245514010,-500.0,0.0001863,2]
[339977164,1728245514023,-611.72,0.0001863,2]
[339977165,1728245514034,-564.15,0.0001863,2]
[339977166,1728245514045,-608.82,0.0001863,2]
[339977167,1728245514056,-1003.97,0.0001863,2]
[339977168,1728245514068,-605.81,0.0001863,2]
[339977169,1728245514079,-541.62,0.0001863,2]
[339977170,1728245514089,-500.0,0.0001863,2]
[339977171,1728245514100,-589.17,0.0001863,2]
[339977172,1728245514111,-1166.46,0.0001863,2]
[339977173,1728245514126,-606.03,0.0001863,2]
[339977174,1728245514137,-578.55,0.0001863,2]
[339977175,1728245514150,-500.0,0.0001863,2]
[339977176,1728245514163,-526.31,0.0001863,2]
[339977177,1728245514171,-500.0,0.0001863,2]
[339977178,1728245514181,-500.0,0.0001863,2]
[339977179,1728245514192,-616.98,0.0001863,2]
[339977180,1728245514203,-500.0,0.0001863,2]
[339977181,1728245514213,-500.0,0.0001863,2]
[339977182,1728245514222,-667.06,0.0001863,2]
[339977183,1728245514233,-1854.38,0.0001863,2]
[339977184,1728245514243,-442.71776173,0.0001863,2]
[339977185,1728245514253,-2983.12,0.0001863,2]
[339977186,1728245514262,-667.95,0.0001863,2]
[339977187,1728245514272,-830.07,0.0001863,2]
[339977188,1728245514283,-518.7,0.0001863,2]
[339977189,1728245514292,-500.0,0.0001863,2]
[339977190,1728245514302,-446.81005189,0.0001863,2]
[339977191,1728245514312,-2165.89,0.0001863,2]
[339977192,1728245514322,-880.03,0.0001863,2]
[339977193,1728245514331,-3094.43,0.0001863,2]
[339977194,1728245514341,-701.44,0.0001863,2]
[339977195,1728245514350,-244.22425037,0.0001863,2]
[339977196,1728245514361,-4696.79,0.0001863,2]
[339977197,1728245514371,-505.3,0.0001863,2]
[339977198,1728245514381,-500.0,0.0001863,2]
[339977199,1728245514391,-507.4,0.0001863,2]
[339977200,1728245514401,-500.0,0.0001863,2]
[339977201,1728245514411,-413.82559232,0.00018857,2]
[339977202,1728245514422,-461.0,0.00018903,2]
[339977203,1728245514432,-811.88,0.00018904,2]
[339977204,1728245514442,-538.21,0.00018904,2]
[339977205,1728245514452,-690.31,0.00018904,2]
[339977206,1728245514462,-753.75,0.00018904,2]
[339977207,1728245514472,-500.0,0.00018904,2]
[339977208,1728245514482,-500.0,0.00018904,2]
[339977209,1728245514493,-560.51,0.00018904,2]
[339977210,1728245514503,-500.0,0.00018904,2]
[339977211,1728245514513,-693.21,0.00018904,2]
[339977212,1728245514523,-750.67,0.00018904,2]
[339977213,1728245514533,-624.79,0.00018904,2]
[339977214,1728245514544,-621.15,0.00018904,2]
[339977215,1728245514553,-573.68,0.00018904,2]
[339977216,1728245514563,-500.0,0.00018904,2]
[339977217,1728245514573,-500.0,0.00018904,2]
[339977218,1728245514583,-566.65,0.00018904,2]
[339977219,1728245514593,-1154.19,0.00018904,2]
[339977220,1728245514603,-511.18,0.00018904,2]
[339977221,1728245514613,-1179.38,0.00018904,2]
[339977222,1728245514624,-751.93,0.00018904,2]
[339977223,1728245514636,-500.0,0.00018904,2]
[339977224,1728245514647,-734.54,0.00018904,2]
[339977225,1728245514657,-500.0,0.00018904,2]
[339977226,1728245514667,-500.0,0.00018904,2]
[339977227,1728245514677,-782.03,0.00018904,2]
[339977228,1728245514687,-600.57,0.00018904,2]
[339977229,1728245514698,-1034.12,0.00018904,2]
[339977230,1728245514708,-567.02,0.00018904,2]
[339977231,1728245514721,-547.51,0.00018904,2]
[339977232,1728245514731,-620.41,0.00018904,2]
[339977233,1728245514744,-500.0,0.00018904,2]
[339977234,1728245514755,-500.0,0.00018904,2]
[339977235,1728245514920,-622.64,0.00018904,2]
[339977236,1728245514934,-343.95144108,0.00018904,2]
[339977237,1728245514945,-1766.09,0.00018904,2]
[339977238,1728245514956,-1018.45,0.00018904,2]
[339977239,1728245514965,-336.72,0.00018904,2]
[339977240,1728245514976,-646.49,0.00018904,2]
[339977241,1728245514987,-548.58,0.00018904,2]
[339977242,1728245514997,-642.06,0.00018904,2]
[339977243,1728245515008,-500.0,0.00018904,2]
[339977244,1728245515020,-678.84,0.00018904,2]
[339977245,1728245515031,-732.29,0.00018904,2]
[339977246,1728245515041,-744.55,0.00018904,2]
[339977247,1728245515052,-500.0,0.00018904,2]
[339977248,1728245515065,-500.0,0.00018904,2]
[339977249,1728245515076,-500.0,0.00018904,2]
[339977250,1728245515085,-701.53,0.00018904,2]
[339977251,1728245515097,-977.67,0.00018904,2]
[339977252,1728245515108,-500.0,0.00018904,2]
[339977253,1728245515120,-631.97,0.00018904,2]
[339977254,1728245515131,-740.81,0.00018904,2]
[339977255,1728245515142,-566.27,0.00018904,2]
[339977256,1728245515153,-1278.33,0.00018904,2]
[339977257,1728245515169,-711.1,0.00018904,2]
[339977258,1728245515181,-321.38432917,0.00018904,2]
[339977259,1728245515191,-500.0,0.00018904,2]
[339977260,1728245515201,-500.0,0.00018904,2]
[339977261,1728245515211,-1687.43,0.00018904,2]
[339977262,1728245515223,-559.4,0.00018904,2]
[339977263,1728245515234,-620.94,0.00018904,2]
[339977264,1728245515245,-570.64,0.00018904,2]
[339977265,1728245515258,-590.68,0.00018904,2]
[339977266,1728245515269,-525.69,0.00018904,2]
[339977267,1728245515280,-731.95,0.00018904,2]
[339977268,1728245515291,-749.78,0.00018904,2]
[339977269,1728245515301,-366.98975616,0.00018904,2]
[339977270,1728245515313,-500.0,0.00018904,2]
[339977271,1728245515326,-500.0,0.00018904,2]
[339977272,1728245515337,-273.72790173,0.00018904,2]
[339977273,1728245515347,-500.0,0.00018904,2]
[339977274,1728245515358,-700.34,0.00018904,2]
[339977275,1728245515370,-850.21,0.00018904,2]
[339977276,1728245515381,-793.43,0.00018904,2]
[339977277,1728245515392,-681.81,0.00018904,2]
[339977278,1728245515404,-500.0,0.00018904,2]
[339977279,1728245515416,-905.5,0.00018904,2]
[339977280,1728245515426,-618.07,0.00018904,2]
[339977281,1728245515437,-500.0,0.00018904,2]
[339977282,1728245515446,-1004.36,0.00018904,2]
[339977283,1728245515456,-769.79,0.00018904,2]
[339977284,1728245515467,-556.25,0.00018904,2]
[339977285,1728245515479,-704.99,0.00018904,2]
[339977286,1728245515489,-511.68,0.00018904,2]
[339977287,1728245515501,-151.0,0.00018904,2]
[339977288,1728245515512,-538.0585641,0.00018904,2]
[339977289,1728245515524,-290.47809619,0.00018904,2]
[339977290,1728245515536,-391.87483831,0.00018904,2]
[339977291,1728245515548,-716.88,0.00018904,2]
[339977292,1728245515559,-1213.0,0.00018904,2]
[339977293,1728245515569,-502.96,0.00018904,2]
[339977294,1728245515580,-640.83,0.00018904,2]
[339977295,1728245515591,-799.58,0.00018904,2]
[339977296,1728245515604,-500.0,0.00018904,2]
[339977297,1728245515617,-2198.44,0.00018904,2]
[339977298,1728245515630,-425.33467304,0.00018904,2]
[339977299,1728245515641,-23220.06,0.00018904,2]
[339977300,1728245515651,-513.24,0.00018904,2]
[339977301,1728245515662,-1825.72,0.00018904,2]
[339977302,1728245515674,-500.0,0.00018904,2]
[339977303,1728245515685,-689.01,0.00018904,2]
[339977304,1728245515695,-3809.25,0.00018904,2]
[339977305,1728245515705,-701.74,0.00018904,2]
[339977306,1728245515715,-1068.37,0.00018904,2]
[339977307,1728245515725,-500.0,0.00018904,2]
[339977308,1728245515735,-500.0,0.00018904,2]
[339977309,1728245515745,-1687.94,0.00018904,2]
[339977310,1728245515755,-1019.82,0.00018904,2]
[339977311,1728245515768,-330.90155047,0.00018904,2]
[339977312,1728245515778,-500.0,0.00018904,2]
[339977313,1728245515790,-611.72,0.00018904,2]
[339977314,1728245515800,-564.15,0.00018904,2]
[339977315,1728245515811,-608.82,0.00018904,2]
[339977316,1728245515823,-605.81,0.00018904,2]
[339977317,1728245515834,-1003.97,0.00018904,2]
[339977318,1728245515843,-541.62,0.00018904,2]
[339977319,1728245515854,-500.0,0.00018904,2]
[339977320,1728245515864,-589.17,0.00018904,2]
[339977321,1728245515876,-1166.46,0.00018904,2]
[339977322,1728245515886,-606.03,0.00018904,2]
[339977323,1728245515896,-578.55,0.00018904,2]
[339977324,1728245515908,-500.0,0.00018904,2]
[339977325,1728245515920,-526.31,0.00018904,2]
[339977326,1728245515930,-645.23268134,0.00018904,2]
[339977327,1728245515940,-500.0,0.00018904,2]
[339977328,1728245515950,-616.98,0.00018904,2]
[339977329,1728245515960,-500.0,0.00018904,2]
[339977330,1728245515970,-500.0,0.00018904,2]
[339977331,1728245515981,-667.06,0.00018904,2]
[339977332,1728245515992,-1854.38,0.00018904,2]
[339977333,1728245516003,-2983.12,0.00018904,2]
[339977334,1728245516015,-667.95,0.00018904,2]
[339977335,1728245516027,-830.07,0.00018904,2]
[339977336,1728245516038,-518.7,0.00018904,2]
[339977337,1728245516047,-500.0,0.00018904,2]
[339977338,1728245516056,-2165.89,0.00018904,2]
[339977339,1728245516067,-880.03,0.00018904,2]
[339977340,1728245516077,-3094.43,0.00018904,2]
[339977341,1728245516089,-701.44,0.00018904,2]
[339977342,1728245516100,-4696.79,0.00018904,2]
[339977343,1728245516110,-505.3,0.00018904,2]
[339977344,1728245516123,-500.0,0.00018904,2]
[339977345,1728245516133,-507.4,0.00018904,2]
[339977346,1728245516142,-5000.0,0.00018904,2]
[339977347,1728245516151,-5000.0,0.00018904,2]
[339977348,1728245516163,-1030.56841598,0.00018904,2]
[339977349,1728245516174,-1000.0,0.00019,19]
[339977350,1728245516184,-153.86378937,0.00019,2]
[339977351,1728245516195,-610.35565362,0.00019097,2]
[339977352,1728245516208,-461.0,0.00019177,2]
[339977353,1728245516217,-811.88,0.00019178,2]
[339977354,1728245516227,-538.21,0.00019178,2]
[339977355,1728245516240,-690.31,0.00019178,2]
[339977356,1728245516252,-753.75,0.00019178,2]
[339977357,1728245516264,-500.0,0.00019178,2]
[339977358,1728245516275,-500.0,0.00019178,2]
[339977359,1728245516286,-560.51,0.00019178,2]
[339977360,1728245516296,-500.0,0.00019178,2]
[339977361,1728245516307,-693.21,0.00019178,2]
[339977362,1728245516318,-750.67,0.00019178,2]
[339977363,1728245516331,-624.79,0.00019178,2]
[339977364,1728245516342,-621.15,0.00019178,2]
[339977365,1728245516354,-573.68,0.00019178,2]
[339977366,1728245516364,-500.0,0.00019178,2]
[339977367,1728245516377,-500.0,0.00019178,2]
[339977368,1728245516387,-600.0,0.00019178,3]
[339977369,1728245516397,-599.47577884,0.00019178,3]
[339977370,1728245516409,-566.65,0.00019178,2]
[339977371,1728245516421,-1154.19,0.00019178,2]
[339977372,1728245516431,-511.18,0.00019178,2]
[339977373,1728245516442,-1179.38,0.00019178,2]
[339977374,1728245516451,-751.93,0.00019178,2]
[339977375,1728245516462,-500.0,0.00019178,2]
[339977376,1728245516474,-734.54,0.00019178,2]
[339977377,1728245516487,-257.59491596,0.00019178,2]
[339977378,1728245516498,-500.0,0.00019178,2]
[339977379,1728245516508,-782.03,0.00019178,2]
[339977380,1728245516518,-500.0,0.00019178,2]
[339977381,1728245516528,-600.57,0.00019178,2]
[339977382,1728245516539,-1034.12,0.00019178,2]
[339977383,1728245516551,-567.02,0.00019178,2]
[339977384,1728245516561,-547.51,0.00019178,2]
[339977385,1728245516573,-620.41,0.00019178,2]
[339977386,1728245516585,-413.79378862,0.00019178,2]
[339977387,1728245516596,-500.0,0.00019178,2]
[339977388,1728245516607,-622.64,0.00019178,2]
[339977389,1728245516617,-1766.09,0.00019178,2]
[339977390,1728245516629,-1018.45,0.00019178,2]
[339977391,1728245516640,-336.72,0.00019178,2]
[339977392,1728245516652,-646.49,0.00019178,2]
[339977393,1728245516662,-548.58,0.00019178,2]
[339977394,1728245516674,-642.06,0.00019178,2]
[339977395,1728245516684,-406.57788593,0.00019178,2]
[339977396,1728245516695,-678.84,0.00019178,2]
[339977397,1728245516706,-732.29,0.00019178,2]
[339977398,1728245516718,-744.55,0.00019178,2]
[339977399,1728245516729,-500.0,0.00019178,2]
[339977400,1728245516741,-307.06303749,0.00019178,2]
[339977401,1728245516753,-500.0,0.00019178,2]
[339977402,1728245516766,-701.53,0.00019178,2]
[339977403,1728245516778,-977.67,0.00019178,2]
[339977404,1728245516789,-500.0,0.00019178,2]
[339977405,1728245516799,-631.97,0.00019178,2]
[339977406,1728245516810,-740.81,0.00019178,2]
[339977407,1728245516821,-566.27,0.00019178,2]
[339977408,1728245516831,-1278.33,0.00019178,2]
[339977409,1728245516842,-711.1,0.00019178,2]
[339977410,1728245516855,-548.54173277,0.00019178,2]
[339977411,1728245516864,-500.0,0.00019178,2]
[339977412,1728245516874,-1687.43,0.00019178,2]
[339977413,1728245516886,-559.4,0.00019178,2]
[339977414,1728245516896,-620.94,0.00019178,2]
[339977415,1728245516905,-570.64,0.00019178,2]
[339977416,1728245516915,-590.68,0.00019178,2]
[339977417,1728245516924,-525.69,0.00019178,2]
[339977418,1728245516934,-731.95,0.00019178,2]
[339977419,1728245516943,-749.78,0.00019178,2]
[339977420,1728245516952,-500.0,0.00019178,2]
[339977421,1728245516962,-500.0,0.00019178,2]
[339977422,1728245516972,-500.0,0.00019178,2]
[339977423,1728245516982,-700.34,0.00019178,2]
[339977424,1728245516991,-850.21,0.00019178,2]
[339977425,1728245517002,-793.43,0.00019178,2]
[339977426,1728245517012,-681.81,0.00019178,2]
[339977427,1728245517024,-500.0,0.00019178,2]
[339977428,1728245517035,-905.5,0.00019178,2]
[339977429,1728245517046,-618.07,0.00019178,2]
[339977430,1728245517056,-548.10614223,0.00019178,2]
[339977431,1728245517067,-1004.36,0.00019178,2]
[339977432,1728245517076,-769.79,0.00019178,2]
[339977433,1728245517086,-556.25,0.00019178,2]
[339977434,1728245517095,-704.99,0.00019178,2]
[339977435,1728245517104,-151.0,0.00019178,2]
[339977436,1728245517114,-511.68,0.00019178,2]
[339977437,1728245517123,-716.88,0.00019178,2]
[339977438,1728245517133,-1213.0,0.00019178,2]
[339977439,1728245517142,-502.96,0.00019178,2]
[339977440,1728245517152,-5000.0,0.00019178,2]
[339977441,1728245517164,-5000.0,0.00019178,2]
[339977442,1728245517174,-5000.0,0.00019178,2]
[339977443,1728245517184,-5000.0,0.00019178,2]
[339977444,1728245517193,-5000.0,0.00019178,2]
[339977445,1728245517202,-5000.0,0.00019178,2]
[339977446,1728245517212,-5000.0,0.00019178,2]
[339977447,1728245517221,-5000.0,0.00019178,2]
[339977448,1728245517230,-5000.0,0.00019178,2]
[339977449,1728245517240,-5000.0,0.00019178,2]
[339977450,1728245517250,-5000.0,0.00019178,2]
[339977451,1728245517260,-5000.0,0.00019178,2]
[339977452,1728245517269,-5000.0,0.00019178,2]
[339977453,1728245517278,-5000.0,0.00019178,2]
[339977454,1728245517287,-5000.0,0.00019178,2]
[339977455,1728245517297,-5000.0,0.00019178,2]
[339977456,1728245517306,-5000.0,0.00019178,2]
[339977457,1728245517315,-5000.0,0.00019178,2]
[339977458,1728245517324,-5000.0,0.00019178,2]
[339977459,1728245517334,-5000.0,0.00019178,2]
[339977460,1728245517343,-5000.0,0.00019178,2]
[339977461,1728245517352,-819.09207924,0.00019178,2]
[339977462,1728245517362,-640.83,0.00019178,2]
[339977463,1728245517372,-799.58,0.00019178,2]
[339977464,1728245517382,-329.62862922,0.00019178,2]
[339977465,1728245517392,-2198.44,0.00019178,2]
[339977466,1728245517401,-23220.06,0.00019178,2]
[339977467,1728245517411,-513.24,0.00019178,2]
[339977468,1728245517421,-1825.72,0.00019178,2]
[339977469,1728245517431,-516.1882642,0.00019178,2]
[339977470,1728245517440,-689.01,0.00019178,2]
[339977471,1728245517450,-3809.25,0.00019178,2]
[339977472,1728245517460,-701.74,0.00019178,2]
[339977473,1728245517470,-1068.37,0.00019178,2]
[339977474,1728245517479,-500.0,0.00019178,2]
[339977475,1728245517489,-500.0,0.00019178,2]
[339977476,1728245517498,-1687.94,0.00019178,2]
[339977477,1728245517508,-1019.82,0.00019178,2]
[339977478,1728245517517,-500.0,0.00019178,2]
[339977479,1728245517527,-611.72,0.00019178,2]
[339977480,1728245517536,-564.15,0.00019178,2]
[339977481,1728245517546,-608.82,0.00019178,2]
[339977482,1728245517556,-605.81,0.00019178,2]
[339977483,1728245517566,-1003.97,0.00019178,2]
[339977484,1728245517575,-541.62,0.00019178,2]
[339977485,1728245517585,-500.0,0.00019178,2]
[339977486,1728245517595,-589.17,0.00019178,2]
[339977487,1728245517605,-1166.46,0.00019178,2]
[339977488,1728245517614,-606.03,0.00019178,2]
[339977489,1728245517624,-578.55,0.00019178,2]
[339977490,1728245517633,-500.0,0.00019178,2]
[339977491,1728245517643,-526.31,0.00019178,2]
[339977492,1728245517652,-500.0,0.00019178,2]
[339977493,1728245517661,-616.98,0.00019178,2]
[339977494,1728245517671,-500.0,0.00019178,2]
[339977495,1728245517681,-500.0,0.00019178,2]
[339977496,1728245517690,-667.06,0.00019178,2]
[339977497,1728245517699,-1854.38,0.00019178,2]
[339977498,1728245517709,-2983.12,0.00019178,2]
[339977499,1728245517719,-667.95,0.00019178,2]
[339977500,1728245517728,-830.07,0.00019178,2]
[339977501,1728245517738,-518.7,0.00019178,2]
[339977502,1728245517748,-590.63244657,0.00019178,2]
[339977503,1728245517757,-2165.89,0.00019178,2]
[339977504,1728245517766,-880.03,0.00019178,2]
[339977505,1728245517775,-3094.43,0.00019178,2]
[339977506,1728245517784,-701.44,0.00019178,2]
[339977507,1728245517794,-4696.79,0.00019178,2]
[339977508,1728245517803,-505.3,0.00019178,2]
[339977509,1728245517812,-500.0,0.00019178,2]
[339977510,1728245517822,-507.4,0.00019178,2]
[339977511,1728245517830,-273.714246,0.00019178,2]
[339977512,1728245517840,-161.270043,0.00019178,2]
[339977513,1728245517850,-176.2153848,0.00019178,2]
[339977514,1728245517860,-461.0,0.00019451,2]
[339977515,1728245517869,-811.88,0.00019452,2]
[339977516,1728245517880,-538.21,0.00019452,2]
[339977517,1728245517889,-690.31,0.00019452,2]
[339977518,1728245517898,-753.75,0.00019452,2]
[339977519,1728245517907,-500.0,0.00019452,2]
[339977520,1728245517917,-500.0,0.00019452,2]
[339977521,1728245517926,-560.51,0.00019452,2]
[339977522,1728245517936,-500.0,0.00019452,2]
[339977523,1728245517946,-693.21,0.00019452,2]
[339977524,1728245517955,-750.67,0.00019452,2]
[339977525,1728245517963,-624.79,0.00019452,2]
[339977526,1728245517972,-621.15,0.00019452,2]
[339977527,1728245517981,-573.68,0.00019452,2]
[339977528,1728245517991,-331.93905405,0.00019452,2]
[339977529,1728245517999,-500.0,0.00019452,2]
[339977530,1728245518008,-566.65,0.00019452,2]
[339977531,1728245518017,-1154.19,0.00019452,2]
[339977532,1728245518026,-511.18,0.00019452,2]
[339977533,1728245518035,-1179.38,0.00019452,2]
[339977534,1728245518045,-751.93,0.00019452,2]
[339977535,1728245518054,-500.0,0.00019452,2]
[339977536,1728245518063,-734.54,0.00019452,2]
[339977537,1728245518072,-500.0,0.00019452,2]
[339977538,1728245518082,-782.03,0.00019452,2]
[339977539,1728245518090,-600.57,0.00019452,2]
[339977540,1728245518100,-1034.12,0.00019452,2]
[339977541,1728245518109,-567.02,0.00019452,2]
[339977542,1728245518119,-547.51,0.00019452,2]
[339977543,1728245518129,-620.41,0.00019452,2]
[339977544,1728245518138,-169.82923975,0.00019452,2]
[339977545,1728245518147,-622.64,0.00019452,2]
[339977546,1728245518158,-1766.09,0.00019452,2]
[339977547,1728245518169,-1018.45,0.00019452,2]
[339977548,1728245518178,-336.72,0.00019452,2]
[339977549,1728245518188,-646.49,0.00019452,2]
[339977550,1728245518198,-548.58,0.00019452,2]
[339977551,1728245518209,-642.06,0.00019452,2]
[339977552,1728245518218,-678.84,0.00019452,2]
[339977553,1728245518227,-732.29,0.00019452,2]
[339977554,1728245518238,-744.55,0.00019452,2]
[339977555,1728245518249,-621.2487014,0.00019452,2]
[339977556,1728245518261,-500.0,0.00019452,2]
[339977557,1728245518274,-701.53,0.00019452,2]
[339977558,1728245518283,-977.67,0.00019452,2]
[339977559,1728245518295,-269.67795225,0.00019452,2]
[339977560,1728245518306,-631.97,0.00019452,2]
[339977561,1728245518318,-740.81,0.00019452,2]
[339977562,1728245518330,-566.27,0.00019452,2]
[339977563,1728245518340,-1278.33,0.00019452,2]
[339977564,1728245518352,-711.1,0.00019452,2]
[339977565,1728245518362,-539.14651738,0.00019452,2]
[339977566,1728245518371,-1687.43,0.00019452,2]
[339977567,1728245518384,-559.4,0.00019452,2]
[339977568,1728245518393,-570.64,0.00019452,2]
[339977569,1728245518402,-620.94,0.00019452,2]
[339977570,1728245518411,-590.68,0.00019452,2]
[339977571,1728245518571,-525.69,0.00019452,2]
[339977572,1728245518583,-731.95,0.00019452,2]
[339977573,1728245518595,-749.78,0.00019452,2]
[339977574,1728245518605,-500.0,0.00019452,2]
[339977575,1728245518614,-588.50887732,0.00019452,2]
[339977576,1728245518624,-500.0,0.00019452,2]
[339977577,1728245518634,-700.34,0.00019452,2]
[339977578,1728245518643,-850.21,0.00019452,2]
[339977579,1728245518653,-793.43,0.00019452,2]
[339977580,1728245518662,-681.81,0.00019452,2]
[339977581,1728245518672,-157.68103955,0.00019452,2]
[339977582,1728245518681,-905.5,0.00019452,2]
[339977583,1728245518691,-618.07,0.00019452,2]
[339977584,1728245518700,-1004.36,0.00019452,2]
[339977585,1728245518709,-769.79,0.00019452,2]
[339977586,1728245518719,-556.25,0.00019452,2]
[339977587,1728245518728,-151.0,0.00019452,2]
[339977588,1728245518738,-704.99,0.00019452,2]
[339977589,1728245518747,-511.68,0.00019452,2]
[339977590,1728245518757,-716.88,0.00019452,2]
[339977591,1728245518766,-1213.0,0.00019452,2]
[339977592,1728245518776,-502.96,0.00019452,2]
[339977593,1728245518785,-640.83,0.00019452,2]
[339977594,1728245518795,-799.58,0.00019452,2]
[339977595,1728245518804,-2198.44,0.00019452,2]
[339977596,1728245518814,-23220.06,0.00019452,2]
[339977597,1728245518823,-513.24,0.00019452,2]
[339977598,1728245518833,-1825.72,0.00019452,2]
[339977599,1728245518841,-689.01,0.00019452,2]
[339977600,1728245518851,-3809.25,0.00019452,2]
[339977601,1728245518860,-701.74,0.00019452,2]
[339977602,1728245518869,-1068.37,0.00019452,2]
[339977603,1728245518887,-559.99702504,0.00019452,2]
[339977604,1728245518895,-393.13674119,0.00019452,2]
[339977605,1728245518904,-1687.94,0.00019452,2]
[339977606,1728245518914,-1019.82,0.00019452,2]
[339977607,1728245518924,-500.0,0.00019452,2]